[Event "Titled Tuesday Blitz April 12 Early 2022"]
[White "Lashkin, Jegor"]
[Black "Harshavardhan G B"]
[WhiteFideId "13907808"]
[BlackFideId "25059009"]
[WhiteElo "2368"]
[BlackElo "1831"]
[Result "0-1"]
[Round "08"]
[TimeControl "180+1"]
[Date "2022.04.12"]
[WhiteClock "0:00:02"]
[BlackClock "0:00:17"]

1. Nf3 {[%clk 0:03:00]}  Nf6 {[%clk 0:02:59]} 2. b3 {[%clk 0:02:59]}  g6 {[%clk 0:02:56]} 3. Bb2 {[%clk 0:03:00]}  Bg7 {[%clk 0:02:57]} 4. e3 {[%clk 0:03:00]}  O-O {[%clk 0:02:57]} 5. d4 {[%clk 0:03:00]}  d5 {[%clk 0:02:57]} 6. Be2 {[%clk 0:02:57]}  Bf5 {[%clk 0:02:55]} 7. O-O {[%clk 0:02:57]}  Nbd7 {[%clk 0:02:51]} 8. c4 {[%clk 0:02:57]}  c5 {[%clk 0:02:50]} 9. Nc3 {[%clk 0:02:57]}  dxc4 {[%clk 0:02:48]} 10. Bxc4 {[%clk 0:02:56]}  Nb6 {[%clk 0:02:41]} 11. Be2 {[%clk 0:02:56]}  Rc8 {[%clk 0:02:40]} 12. dxc5 {[%clk 0:02:52]}  Rxc5 {[%clk 0:02:37]} 13. Nd4 {[%clk 0:02:50]}  Bc8 {[%clk 0:02:32]} 14. Rc1 {[%clk 0:02:39]}  Re8 {[%clk 0:02:21]} 15. Bf3 {[%clk 0:02:00]}  a6 {[%clk 0:02:12]} 16. Ne4 {[%clk 0:01:34]}  Nxe4 {[%clk 0:02:09]} 17. Bxe4 {[%clk 0:01:34]}  Rxc1 {[%clk 0:02:07]} 18. Qxc1 {[%clk 0:01:35]}  e5 {[%clk 0:01:56]} 19. Nf3 {[%clk 0:01:22]}  f5 {[%clk 0:01:53]} 20. Rd1 {[%clk 0:01:22]}  Qe7 {[%clk 0:01:51]} 21. Bd5+ {[%clk 0:00:52]}  Nxd5 {[%clk 0:01:49]} 22. Rxd5 {[%clk 0:00:53]}  e4 {[%clk 0:01:47]} 23. Bxg7 {[%clk 0:00:51]}  Qxg7 {[%clk 0:01:44]} 24. Nd4 {[%clk 0:00:50]}  Qf7 {[%clk 0:01:40]} 25. Rc5 {[%clk 0:00:48]}  Be6 {[%clk 0:01:37]} 26. g3 {[%clk 0:00:38]}  h6 {[%clk 0:01:24]} 27. Qc3 {[%clk 0:00:36]}  Re7 {[%clk 0:01:14]} 28. a4 {[%clk 0:00:28]}  Bd7 {[%clk 0:01:11]} 29. Qb4 {[%clk 0:00:24]}  Be8 {[%clk 0:01:00]} 30. Rc8 {[%clk 0:00:23]}  Rc7 {[%clk 0:00:56]} 31. Rb8 {[%clk 0:00:17]}  Qd7 {[%clk 0:00:49]} 32. Qa5 {[%clk 0:00:07]}  Rc8 {[%clk 0:00:43]} 33. Rxc8 {[%clk 0:00:07]}  Qxc8 {[%clk 0:00:44]} 34. Qe5 {[%clk 0:00:08]}  Bf7 {[%clk 0:00:43]} 35. Kg2 {[%clk 0:00:07]}  b6 {[%clk 0:00:42]} 36. b4 {[%clk 0:00:06]}  Qe8 {[%clk 0:00:31]} 37. Qxe8+ {[%clk 0:00:06]}  Bxe8 {[%clk 0:00:32]} 38. a5 {[%clk 0:00:07]}  bxa5 {[%clk 0:00:32]} 39. bxa5 {[%clk 0:00:08]}  Kf7 {[%clk 0:00:33]} 40. f3 {[%clk 0:00:08]}  Kf6 {[%clk 0:00:31]} 41. fxe4 {[%clk 0:00:07]}  fxe4 {[%clk 0:00:32]} 42. g4 {[%clk 0:00:07]}  Ke5 {[%clk 0:00:32]} 43. h4 {[%clk 0:00:07]}  Kd5 {[%clk 0:00:31]} 44. g5 {[%clk 0:00:07]}  hxg5 {[%clk 0:00:31]} 45. hxg5 {[%clk 0:00:08]}  Kc5 {[%clk 0:00:32]} 46. Kg3 {[%clk 0:00:08]}  Kb4 {[%clk 0:00:32]} 47. Kf4 {[%clk 0:00:08]}  Kxa5 {[%clk 0:00:32]} 48. Kxe4 {[%clk 0:00:08]}  Kb4 {[%clk 0:00:33]} 49. Kd3 {[%clk 0:00:08]}  a5 {[%clk 0:00:33]} 50. Kc2 {[%clk 0:00:06]}  Kc4 {[%clk 0:00:33]} 51. Nf3 {[%clk 0:00:06]}  Kd5 {[%clk 0:00:32]} 52. Nd2 {[%clk 0:00:06]}  Ke6 {[%clk 0:00:30]} 53. Kd3 {[%clk 0:00:05]}  Kf5 {[%clk 0:00:30]} 54. Nf3 {[%clk 0:00:05]}  a4 {[%clk 0:00:29]} 55. e4+ {[%clk 0:00:05]}  Kf4 {[%clk 0:00:29]} 56. Nd4 {[%clk 0:00:06]}  Kxg5 {[%clk 0:00:29]} 57. Ne6+ {[%clk 0:00:05]}  Kf6 {[%clk 0:00:28]} 58. Nc7 {[%clk 0:00:06]}  Bd7 {[%clk 0:00:28]} 59. Kd4 {[%clk 0:00:07]}  g5 {[%clk 0:00:26]} 60. Nd5+ {[%clk 0:00:07]}  Ke6 {[%clk 0:00:24]} 61. Nb6 {[%clk 0:00:08]}  Be8 {[%clk 0:00:23]} 62. Nc4 {[%clk 0:00:08]}  g4 {[%clk 0:00:23]} 63. Ke3 {[%clk 0:00:08]}  Bb5 {[%clk 0:00:21]} 64. Na3 {[%clk 0:00:08]}  Bd7 {[%clk 0:00:22]} 65. Kf4 {[%clk 0:00:09]}  Kd6 {[%clk 0:00:22]} 66. e5+ {[%clk 0:00:07]}  Kd5 {[%clk 0:00:22]} 67. Nc2 {[%clk 0:00:07]}  Kc4 {[%clk 0:00:21]} 68. Ne3+ {[%clk 0:00:07]}  Kd3 {[%clk 0:00:19]} 69. Nd5 {[%clk 0:00:07]}  a3 {[%clk 0:00:19]} 70. Nb6 {[%clk 0:00:06]}  Be6 {[%clk 0:00:18]} 71. Na4 {[%clk 0:00:04]}  Kd4 {[%clk 0:00:17]} 72. Nb6 {[%clk 0:00:02]}  a2 {[%clk 0:00:17]} 0-1


[Site "https://www.chess.com"]

[Event "Titled Tuesday Blitz April 12 Early 2022"]
[White "Madaminov, Mukhiddin"]
[Black "Ferreira, Vitor Hugo Vieira"]
[WhiteFideId "14210703"]
[BlackFideId "2119765"]
[WhiteElo "1916"]
[BlackElo "2165"]
[Result "1-0"]
[Round "08"]
[TimeControl "180+1"]
[Date "2022.04.13"]
[WhiteClock "0:01:47"]
[BlackClock "0:00:12"]

1. d4 {[%clk 0:03:00]}  Nf6 {[%clk 0:02:59]} 2. Nc3 {[%clk 0:03:01]}  d5 {[%clk 0:02:58]} 3. Bf4 {[%clk 0:03:01]}  e6 {[%clk 0:02:57]} 4. Nb5 {[%clk 0:03:01]}  Na6 {[%clk 0:02:56]} 5. e3 {[%clk 0:03:01]}  c6 {[%clk 0:02:55]} 6. Nc3 {[%clk 0:03:01]}  Bd6 {[%clk 0:02:51]} 7. Bxa6 {[%clk 0:03:00]}  bxa6 {[%clk 0:02:51]} 8. Nf3 {[%clk 0:03:01]}  a5 {[%clk 0:02:49]} 9. O-O {[%clk 0:03:01]}  O-O {[%clk 0:02:48]} 10. Re1 {[%clk 0:02:58]}  c5 {[%clk 0:02:48]} 11. Ne5 {[%clk 0:02:54]}  Ba6 {[%clk 0:02:43]} 12. Bg5 {[%clk 0:02:52]}  cxd4 {[%clk 0:02:39]} 13. exd4 {[%clk 0:02:51]}  Re8 {[%clk 0:02:31]} 14. Qf3 {[%clk 0:02:48]}  h6 {[%clk 0:02:24]} 15. Bh4 {[%clk 0:02:47]}  Rc8 {[%clk 0:02:13]} 16. Re3 {[%clk 0:02:43]}  Be7 {[%clk 0:02:09]} 17. Rae1 {[%clk 0:02:33]}  Rf8 {[%clk 0:02:03]} 18. Qd1 {[%clk 0:02:27]}  Nd7 {[%clk 0:01:58]} 19. Nxd7 {[%clk 0:02:20]}  Qxd7 {[%clk 0:01:27]} 20. Bxe7 {[%clk 0:02:19]}  Qxe7 {[%clk 0:01:28]} 21. Nxd5 {[%clk 0:02:20]}  Qb7 {[%clk 0:01:20]} 22. Nf6+ {[%clk 0:01:52]}  gxf6 {[%clk 0:01:16]} 23. Qh5 {[%clk 0:01:53]}  Qd5 {[%clk 0:00:25]} 24. Qxh6 {[%clk 0:01:51]}  Qg5 {[%clk 0:00:13]} 25. Rg3 {[%clk 0:01:51]}  Qxg3 {[%clk 0:00:13]} 26. hxg3 {[%clk 0:01:51]}  f5 {[%clk 0:00:13]} 27. d5 {[%clk 0:01:48]}  Rxc2 {[%clk 0:00:12]} 28. dxe6 {[%clk 0:01:48]}  fxe6 {[%clk 0:00:12]} 29. Qg6+ {[%clk 0:01:47]} 1-0


[Site "https://www.chess.com"]

[Event "Titled Tuesday Blitz April 12 Early 2022"]
[White "Manolache, Marius"]
[Black "Xu, Yi"]
[WhiteFideId "1201530"]
[BlackFideId "8605564"]
[WhiteElo "2364"]
[BlackElo "2471"]
[Result "1-0"]
[Round "08"]
[TimeControl "180+1"]
[Date "2022.04.12"]
[WhiteClock "0:00:59"]
[BlackClock "0:00:42"]

1. d4 {[%clk 0:03:00]}  Nf6 {[%clk 0:03:00]} 2. c4 {[%clk 0:03:00]}  e6 {[%clk 0:02:59]} 3. Nf3 {[%clk 0:03:00]}  d5 {[%clk 0:02:59]} 4. Nc3 {[%clk 0:02:59]}  Bb4 {[%clk 0:03:00]} 5. Qa4+ {[%clk 0:02:58]}  Nc6 {[%clk 0:03:00]} 6. e3 {[%clk 0:02:57]}  O-O {[%clk 0:03:00]} 7. Be2 {[%clk 0:02:56]}  Re8 {[%clk 0:02:54]} 8. O-O {[%clk 0:02:55]}  Bf8 {[%clk 0:02:46]} 9. a3 {[%clk 0:02:53]}  Ne7 {[%clk 0:02:40]} 10. Rd1 {[%clk 0:02:48]}  b6 {[%clk 0:02:37]} 11. b4 {[%clk 0:02:43]}  dxc4 {[%clk 0:02:33]} 12. Bxc4 {[%clk 0:02:40]}  Bb7 {[%clk 0:02:34]} 13. Be2 {[%clk 0:02:40]}  a6 {[%clk 0:02:31]} 14. Bb2 {[%clk 0:02:39]}  Ng6 {[%clk 0:02:23]} 15. Rac1 {[%clk 0:02:36]}  Bd6 {[%clk 0:02:22]} 16. h3 {[%clk 0:02:34]}  Qe7 {[%clk 0:02:21]} 17. Qb3 {[%clk 0:02:31]}  e5 {[%clk 0:02:15]} 18. d5 {[%clk 0:02:29]}  b5 {[%clk 0:02:11]} 19. Nd2 {[%clk 0:02:20]}  Rac8 {[%clk 0:02:10]} 20. Nde4 {[%clk 0:02:12]}  Nd7 {[%clk 0:02:06]} 21. Bg4 {[%clk 0:02:04]}  Rf8 {[%clk 0:02:02]} 22. Ng3 {[%clk 0:02:02]}  Qd8 {[%clk 0:01:54]} 23. Nce4 {[%clk 0:02:01]}  Rb8 {[%clk 0:01:46]} 24. Nxd6 {[%clk 0:01:57]}  cxd6 {[%clk 0:01:46]} 25. e4 {[%clk 0:01:51]}  Nf6 {[%clk 0:01:43]} 26. Bf5 {[%clk 0:01:48]}  Ne7 {[%clk 0:01:43]} 27. Qe3 {[%clk 0:01:34]}  Kh8 {[%clk 0:01:36]} 28. f4 {[%clk 0:01:28]}  Nd7 {[%clk 0:01:07]} 29. Bxd7 {[%clk 0:01:19]}  Qxd7 {[%clk 0:01:07]} 30. fxe5 {[%clk 0:01:17]}  dxe5 {[%clk 0:01:00]} 31. Bxe5 {[%clk 0:01:17]}  Rbc8 {[%clk 0:01:01]} 32. Bxg7+ {[%clk 0:01:06]}  Kxg7 {[%clk 0:00:59]} 33. Qg5+ {[%clk 0:01:05]}  Kh8 {[%clk 0:00:58]} 34. Nh5 {[%clk 0:01:05]}  Nf5 {[%clk 0:00:42]} 35. Qf6+ {[%clk 0:00:59]}  Kg8 {[%clk 0:00:42]} 36. exf5 {[%clk 0:00:59]} 1-0


[Site "https://www.chess.com"]

[Event "Titled Tuesday Blitz April 12 Early 2022"]
[White "Manukian, Artak"]
[Black "Sahil, Tickoo"]
[WhiteFideId "13301373"]
[BlackFideId "5019710"]
[WhiteElo "2342"]
[BlackElo "2099"]
[Result "1-0"]
[Round "08"]
[TimeControl "180+1"]
[Date "2022.04.13"]
[WhiteClock "0:00:14"]
[BlackClock "0:00:03"]

1. e4 {[%clk 0:01:27]}  c5 {[%clk 0:02:57]} 2. Nf3 {[%clk 0:01:26]}  d6 {[%clk 0:02:58]} 3. Bb5+ {[%clk 0:01:26]}  Bd7 {[%clk 0:02:58]} 4. Bxd7+ {[%clk 0:01:25]}  Nxd7 {[%clk 0:02:59]} 5. c4 {[%clk 0:01:26]}  Ngf6 {[%clk 0:02:58]} 6. Nc3 {[%clk 0:01:27]}  g6 {[%clk 0:02:57]} 7. d3 {[%clk 0:01:26]}  Bg7 {[%clk 0:02:56]} 8. O-O {[%clk 0:01:26]}  O-O {[%clk 0:02:55]} 9. Bg5 {[%clk 0:01:26]}  a6 {[%clk 0:02:54]} 10. Qd2 {[%clk 0:01:26]}  Nb8 {[%clk 0:02:53]} 11. Bh6 {[%clk 0:01:25]}  Nc6 {[%clk 0:02:53]} 12. Bxg7 {[%clk 0:01:24]}  Kxg7 {[%clk 0:02:54]} 13. Nd5 {[%clk 0:01:24]}  e5 {[%clk 0:02:40]} 14. a3 {[%clk 0:01:21]}  Nxd5 {[%clk 0:02:37]} 15. cxd5 {[%clk 0:01:21]}  Nd4 {[%clk 0:02:37]} 16. Nxd4 {[%clk 0:01:20]}  cxd4 {[%clk 0:02:37]} 17. f4 {[%clk 0:01:20]}  f6 {[%clk 0:02:37]} 18. f5 {[%clk 0:01:10]}  Rc8 {[%clk 0:02:36]} 19. h4 {[%clk 0:01:08]}  Rf7 {[%clk 0:02:12]} 20. Rac1 {[%clk 0:01:04]}  Rfc7 {[%clk 0:02:10]} 21. fxg6 {[%clk 0:00:59]}  hxg6 {[%clk 0:02:07]} 22. h5 {[%clk 0:00:59]}  Rxc1 {[%clk 0:01:53]} 23. Rxc1 {[%clk 0:00:54]}  Rxc1+ {[%clk 0:01:42]} 24. Qxc1 {[%clk 0:00:55]}  gxh5 {[%clk 0:01:41]} 25. Qd1 {[%clk 0:00:54]}  Qe8 {[%clk 0:01:32]} 26. Qb3 {[%clk 0:00:52]}  Qd7 {[%clk 0:01:28]} 27. Qb6 {[%clk 0:00:50]}  Kg6 {[%clk 0:01:25]} 28. Kf2 {[%clk 0:00:45]}  h4 {[%clk 0:01:24]} 29. Ke2 {[%clk 0:00:36]}  Qg4+ {[%clk 0:01:20]} 30. Kf1 {[%clk 0:00:31]}  Qd1+ {[%clk 0:01:09]} 31. Kf2 {[%clk 0:00:31]}  Qd2+ {[%clk 0:01:07]} 32. Kg1 {[%clk 0:00:31]}  Qxd3 {[%clk 0:01:04]} 33. Qxd6 {[%clk 0:00:31]}  Qxe4 {[%clk 0:00:51]} 34. Qe6 {[%clk 0:00:31]}  Qe1+ {[%clk 0:00:47]} 35. Kh2 {[%clk 0:00:31]}  Qg3+ {[%clk 0:00:47]} 36. Kg1 {[%clk 0:00:31]}  d3 {[%clk 0:00:38]} 37. Qg8+ {[%clk 0:00:19]}  Kf5 {[%clk 0:00:37]} 38. Qh7+ {[%clk 0:00:18]}  Kf4 {[%clk 0:00:32]} 39. d6 {[%clk 0:00:17]}  Qe1+ {[%clk 0:00:28]} 40. Kh2 {[%clk 0:00:16]}  Qg3+ {[%clk 0:00:25]} 41. Kg1 {[%clk 0:00:16]}  Qe1+ {[%clk 0:00:26]} 42. Kh2 {[%clk 0:00:17]}  d2 {[%clk 0:00:20]} 43. Qh6+ {[%clk 0:00:17]}  Ke4 {[%clk 0:00:17]} 44. Qg6+ {[%clk 0:00:17]}  Ke3 {[%clk 0:00:15]} 45. Qh6+ {[%clk 0:00:15]}  Ke2 {[%clk 0:00:11]} 46. Qh5+ {[%clk 0:00:14]}  Kf2 {[%clk 0:00:03]} 47. Qf3# {[%clk 0:00:14]} 1-0


[Site "https://www.chess.com"]

[Event "Titled Tuesday Blitz April 12 Early 2022"]
[White "Marcziter, Dmitrii"]
[Black "Vokarev, Sergey"]
[WhiteFideId "13900765"]
[BlackFideId "4119711"]
[WhiteElo "2155"]
[BlackElo "2343"]
[Result "0-1"]
[Round "08"]
[TimeControl "180+1"]
[Date "2022.04.13"]
[WhiteClock "0:00:03"]
[BlackClock "0:00:54"]

1. d4 {[%clk 0:02:40]}  d5 {[%clk 0:02:52]} 2. c4 {[%clk 0:02:39]}  dxc4 {[%clk 0:02:49]} 3. e4 {[%clk 0:02:39]}  b5 {[%clk 0:02:48]} 4. a4 {[%clk 0:02:36]}  c6 {[%clk 0:02:46]} 5. Nf3 {[%clk 0:02:32]}  a6 {[%clk 0:02:40]} 6. b3 {[%clk 0:02:31]}  cxb3 {[%clk 0:02:34]} 7. axb5 {[%clk 0:02:29]}  cxb5 {[%clk 0:02:33]} 8. Bxb5+ {[%clk 0:02:27]}  axb5 {[%clk 0:02:32]} 9. Rxa8 {[%clk 0:02:26]}  Bb7 {[%clk 0:02:32]} 10. Ra3 {[%clk 0:02:13]}  e6 {[%clk 0:02:26]} 11. Rxb3 {[%clk 0:02:07]}  b4 {[%clk 0:02:26]} 12. O-O {[%clk 0:01:58]}  Bxe4 {[%clk 0:02:23]} 13. Bd2 {[%clk 0:01:35]}  Nc6 {[%clk 0:02:22]} 14. Qe2 {[%clk 0:01:22]}  Bxf3 {[%clk 0:02:20]} 15. Qxf3 {[%clk 0:01:16]}  Nxd4 {[%clk 0:02:20]} 16. Qd3 {[%clk 0:01:15]}  Nxb3 {[%clk 0:02:20]} 17. Qxb3 {[%clk 0:01:15]}  Nf6 {[%clk 0:02:20]} 18. Bxb4 {[%clk 0:01:13]}  Bxb4 {[%clk 0:01:59]} 19. Qxb4 {[%clk 0:01:12]}  Nd5 {[%clk 0:01:58]} 20. Qa3 {[%clk 0:01:09]}  f6 {[%clk 0:01:55]} 21. Re1 {[%clk 0:01:03]}  Kf7 {[%clk 0:01:55]} 22. Nd2 {[%clk 0:00:58]}  Qe7 {[%clk 0:01:51]} 23. Qh3 {[%clk 0:00:56]}  Nf4 {[%clk 0:01:46]} 24. Qg4 {[%clk 0:00:55]}  g5 {[%clk 0:01:45]} 25. g3 {[%clk 0:00:54]}  h5 {[%clk 0:01:45]} 26. Qf3 {[%clk 0:00:53]}  Ng6 {[%clk 0:01:43]} 27. Ne4 {[%clk 0:00:52]}  Kg7 {[%clk 0:01:42]} 28. Rb1 {[%clk 0:00:48]}  Ne5 {[%clk 0:01:35]} 29. Qe2 {[%clk 0:00:38]}  Nf7 {[%clk 0:01:31]} 30. h4 {[%clk 0:00:33]}  g4 {[%clk 0:01:27]} 31. f3 {[%clk 0:00:32]}  Ne5 {[%clk 0:01:14]} 32. fxg4 {[%clk 0:00:29]}  hxg4 {[%clk 0:01:13]} 33. Ng5 {[%clk 0:00:23]}  Qc5+ {[%clk 0:01:07]} 34. Kf1 {[%clk 0:00:07]}  fxg5 {[%clk 0:01:03]} 35. Rb5 {[%clk 0:00:04]}  Qc1+ {[%clk 0:00:58]} 36. Kf2 {[%clk 0:00:04]}  Rf8+ {[%clk 0:00:55]} 37. Kg2 {[%clk 0:00:03]}  Qc6+ {[%clk 0:00:54]} 0-1


[Site "https://www.chess.com"]

[Event "Titled Tuesday Blitz April 12 Early 2022"]
[White "Meshkovs, Nikita"]
[Black "Maevsky, Nikolay"]
[WhiteFideId "11602740"]
[BlackFideId "4198220"]
[WhiteElo "2506"]
[BlackElo "2126"]
[Result "1-0"]
[Round "08"]
[TimeControl "180+1"]
[Date "2022.04.12"]
[WhiteClock "0:01:09"]
[BlackClock "0:01:16"]

1. d4 {[%clk 0:03:00]}  d5 {[%clk 0:02:59]} 2. Nf3 {[%clk 0:03:01]}  Nf6 {[%clk 0:02:59]} 3. c4 {[%clk 0:03:01]}  c6 {[%clk 0:02:59]} 4. Nc3 {[%clk 0:03:00]}  dxc4 {[%clk 0:03:00]} 5. e4 {[%clk 0:03:01]}  b5 {[%clk 0:03:00]} 6. Be2 {[%clk 0:02:59]}  b4 {[%clk 0:03:00]} 7. Na4 {[%clk 0:02:57]}  Nxe4 {[%clk 0:03:00]} 8. Bxc4 {[%clk 0:02:57]}  e6 {[%clk 0:03:01]} 9. O-O {[%clk 0:02:56]}  Nd7 {[%clk 0:03:01]} 10. Re1 {[%clk 0:02:46]}  Nef6 {[%clk 0:03:00]} 11. Bf4 {[%clk 0:02:41]}  Be7 {[%clk 0:02:59]} 12. Rc1 {[%clk 0:02:40]}  Bb7 {[%clk 0:02:57]} 13. Qe2 {[%clk 0:02:27]}  Nd5 {[%clk 0:02:50]} 14. Bg3 {[%clk 0:02:14]}  Rc8 {[%clk 0:02:43]} 15. Ba6 {[%clk 0:02:09]}  Bxa6 {[%clk 0:02:30]} 16. Qxa6 {[%clk 0:02:10]}  c5 {[%clk 0:02:18]} 17. dxc5 {[%clk 0:02:06]}  Nxc5 {[%clk 0:02:18]} 18. Nxc5 {[%clk 0:01:59]}  Rxc5 {[%clk 0:02:11]} 19. Rxc5 {[%clk 0:01:57]}  Bxc5 {[%clk 0:02:11]} 20. Qb5+ {[%clk 0:01:57]}  Qd7 {[%clk 0:02:10]} 21. Qxc5 {[%clk 0:01:57]}  f6 {[%clk 0:02:07]} 22. Nd4 {[%clk 0:01:56]}  e5 {[%clk 0:02:02]} 23. Nc6 {[%clk 0:01:49]}  Nb6 {[%clk 0:01:57]} 24. Bxe5 {[%clk 0:01:39]}  Kf7 {[%clk 0:01:48]} 25. Bxf6 {[%clk 0:01:22]}  Kxf6 {[%clk 0:01:30]} 26. Qe5+ {[%clk 0:01:20]}  Kg6 {[%clk 0:01:26]} 27. Ne7+ {[%clk 0:01:13]}  Kf7 {[%clk 0:01:24]} 28. Qf4+ {[%clk 0:01:12]}  Ke8 {[%clk 0:01:19]} 29. Nc6+ {[%clk 0:01:12]}  Qe6 {[%clk 0:01:17]} 30. Rxe6+ {[%clk 0:01:12]}  Kd7 {[%clk 0:01:17]} 31. Qd6+ {[%clk 0:01:10]}  Kc8 {[%clk 0:01:18]} 32. Re7 {[%clk 0:01:10]}  Rd8 {[%clk 0:01:16]} 33. Nxa7# {[%clk 0:01:09]} 1-0


[Site "https://www.chess.com"]

[Event "Titled Tuesday Blitz April 12 Early 2022"]
[White "Mikhailov, Viacheslav"]
[Black "Bluebaum, Matthias"]
[WhiteFideId "4187369"]
[BlackFideId "24651516"]
[WhiteElo "2381"]
[BlackElo "2550"]
[Result "1/2-1/2"]
[Round "08"]
[TimeControl "180+1"]
[Date "2022.04.12"]
[WhiteClock "0:00:12"]
[BlackClock "0:00:11"]

1. Nf3 {[%clk 0:03:00]}  d5 {[%clk 0:02:59]} 2. g3 {[%clk 0:02:59]}  b6 {[%clk 0:02:56]} 3. Bg2 {[%clk 0:02:59]}  Bb7 {[%clk 0:02:56]} 4. O-O {[%clk 0:03:00]}  e6 {[%clk 0:02:56]} 5. c4 {[%clk 0:03:00]}  dxc4 {[%clk 0:02:55]} 6. Na3 {[%clk 0:02:59]}  Bxa3 {[%clk 0:02:53]} 7. Qa4+ {[%clk 0:02:59]}  Nd7 {[%clk 0:02:50]} 8. Qxa3 {[%clk 0:02:58]}  Qe7 {[%clk 0:02:47]} 9. Qa4 {[%clk 0:02:57]}  Qc5 {[%clk 0:02:38]} 10. b3 {[%clk 0:02:53]}  b5 {[%clk 0:02:32]} 11. Qa5 {[%clk 0:02:46]}  Qb6 {[%clk 0:02:32]} 12. Qc3 {[%clk 0:02:41]}  Ngf6 {[%clk 0:02:32]} 13. bxc4 {[%clk 0:02:41]}  b4 {[%clk 0:02:32]} 14. Qc2 {[%clk 0:02:38]}  c5 {[%clk 0:02:32]} 15. d3 {[%clk 0:02:38]}  O-O {[%clk 0:02:32]} 16. Bf4 {[%clk 0:02:31]}  Rfe8 {[%clk 0:02:30]} 17. Ne5 {[%clk 0:02:23]}  Bxg2 {[%clk 0:02:28]} 18. Kxg2 {[%clk 0:02:23]}  Nxe5 {[%clk 0:02:23]} 19. Bxe5 {[%clk 0:02:24]}  Nd7 {[%clk 0:02:24]} 20. Bb2 {[%clk 0:02:22]}  e5 {[%clk 0:02:24]} 21. e4 {[%clk 0:02:09]}  Nb8 {[%clk 0:02:14]} 22. f4 {[%clk 0:02:08]}  Nc6 {[%clk 0:02:13]} 23. fxe5 {[%clk 0:02:07]}  Nxe5 {[%clk 0:02:14]} 24. Rf5 {[%clk 0:01:58]}  f6 {[%clk 0:02:14]} 25. Bxe5 {[%clk 0:01:58]}  Rxe5 {[%clk 0:02:13]} 26. Rxe5 {[%clk 0:01:58]}  fxe5 {[%clk 0:02:14]} 27. Rf1 {[%clk 0:01:58]}  Qd6 {[%clk 0:02:11]} 28. Rf3 {[%clk 0:01:42]}  Rf8 {[%clk 0:01:53]} 29. Rxf8+ {[%clk 0:01:36]}  Kxf8 {[%clk 0:01:54]} 30. h4 {[%clk 0:01:36]}  Ke7 {[%clk 0:01:51]} 31. Qe2 {[%clk 0:01:30]}  g6 {[%clk 0:01:49]} 32. Qd2 {[%clk 0:01:29]}  Kf7 {[%clk 0:01:45]} 33. Qh6 {[%clk 0:01:18]}  Kg8 {[%clk 0:01:44]} 34. Qe3 {[%clk 0:01:13]}  Kg7 {[%clk 0:01:42]} 35. h5 {[%clk 0:01:11]}  h6 {[%clk 0:01:42]} 36. hxg6 {[%clk 0:01:10]}  Kxg6 {[%clk 0:01:41]} 37. Qf2 {[%clk 0:01:05]}  Kg7 {[%clk 0:01:22]} 38. Qf5 {[%clk 0:01:03]}  a5 {[%clk 0:01:17]} 39. Qg4+ {[%clk 0:01:00]}  Kf7 {[%clk 0:01:16]} 40. Qf5+ {[%clk 0:01:00]}  Ke7 {[%clk 0:01:16]} 41. Qh7+ {[%clk 0:01:00]}  Kd8 {[%clk 0:01:16]} 42. Qg8+ {[%clk 0:00:56]}  Kc7 {[%clk 0:01:16]} 43. Qa8 {[%clk 0:00:49]}  Kb6 {[%clk 0:01:12]} 44. Kf2 {[%clk 0:00:42]}  Qc7 {[%clk 0:00:53]} 45. Ke2 {[%clk 0:00:40]}  h5 {[%clk 0:00:43]} 46. Qe8 {[%clk 0:00:35]}  Ka7 {[%clk 0:00:34]} 47. Qb5 {[%clk 0:00:30]}  Qb6 {[%clk 0:00:34]} 48. Qd7+ {[%clk 0:00:30]}  Qb7 {[%clk 0:00:25]} 49. Qe8 {[%clk 0:00:25]}  Qc7 {[%clk 0:00:18]} 50. Qxh5 {[%clk 0:00:23]}  a4 {[%clk 0:00:13]} 51. Qe8 {[%clk 0:00:24]}  Qa5 {[%clk 0:00:13]} 52. Qd7+ {[%clk 0:00:22]}  Kb8 {[%clk 0:00:14]} 53. Qe8+ {[%clk 0:00:21]}  Kb7 {[%clk 0:00:13]} 54. Qe7+ {[%clk 0:00:17]}  Ka8 {[%clk 0:00:14]} 55. Qe8+ {[%clk 0:00:15]}  Kb7 {[%clk 0:00:14]} 56. Kd1 {[%clk 0:00:13]}  b3 {[%clk 0:00:13]} 57. axb3 {[%clk 0:00:12]}  a3 {[%clk 0:00:11]} 58. Qd7+ {[%clk 0:00:11]}  Kb8 {[%clk 0:00:11]} 59. Qe8+ {[%clk 0:00:11]}  Kb7 {[%clk 0:00:11]} 60. Qd7+ {[%clk 0:00:12]}  Kb8 {[%clk 0:00:11]} 61. Qe8+ {[%clk 0:00:12]}  Kb7 {[%clk 0:00:11]} 1/2-1/2


[Site "https://www.chess.com"]